Cogmind - Beta 11.1 @@@ ROGUE MODE // 2022.07.04 @ 00:41:36 Player: Roadie Result: Self-destructed Performance ------------- Evolutions (3) 1500 Regions Visited (5) 1000 Robots Destroyed (53) 265 Value Destroyed (1430) 1430 Prototype IDs (6) 120 Alien Tech Used (0) 0 Bonus (256) 256 TOTAL SCORE: 4571 Bonus ------- High Alert Combat Kills 56 Entered Garrisons 200 Cogmind --------- Core Integrity 559/700 Matter 10/300 Energy 300/300 System Corruption 11% Temperature Warm (141) Movement Flying (275) Ox3 Location -7/Garrison Parts ------- > --- POWER (1) -------- (None) > --- PROPULSION (4) --- VTOL Module > --- UTILITY (6) ------ Medium Storage Unit Compact Battery Improved Signal Interpreter Improved Light Armor Plating > --- WEAPON (2) ------- Mini Grenade Launcher Mini Grenade Launcher > --- INVENTORY (10) --- Airjet Machine Analyzer Improved Sensor Array Terrain Scanner Improved Targeting Computer Hacking Suite Peak State ------------ > --- POWER ------------ Nuclear Core > --- PROPULSION ------- Airjet Airjet Airjet Airjet > --- UTILITY ---------- Medium Storage Unit Improved Sensor Array Improved Signal Interpreter Improved Targeting Computer Improved Light Armor Plating Hacking Suite > --- WEAPON ----------- Flak Cannon Flak Cannon > --- INVENTORY -------- Compact Battery Machine Analyzer Terrain Scanner Improved Targeting Computer Improved Light Armor Plating Hacking Suite Mini Grenade Launcher Mini Grenade Launcher [Rating: 37] Favorites ----------- Power Improved Ion Engine Engine Improved Ion Engine Power Core Nuclear Core Propulsion Airjet Wheel Compact Wheel Hover Unit Airjet Flight Unit Flight Unit Utility Improved Light Armor Plating Device Sensor Array Storage Medium Storage Unit Processor Targeting Computer Hackware Hacking Suite Protection Improved Light Armor Plating Weapon Flak Cannon Energy Gun Improved EM Shotgun Ballistic Gun Assault Rifle Ballistic Cannon Flak Cannon Launcher Mini Grenade Launcher Special Weapon Plasma Cutter Build | -11 -10 -9 -8 -7 -7 ------- Run | Scr Mat Mat Mat Fac Gar Slots Evolved 6 | . . 2 2 2 . Power . | . . . . . . Propulsion 2 | . . 2 . . . Utility 4 | . . . 2 2 . Weapon . | . . . . . . Parts Attached 55 | 6 4 15 21 2 7 Power 9 | 1 . 2 6 . . Engine 4 | 1 . 2 1 . . Core 5 | . . . 5 . . Reactor . | . . . . . . Propulsion 15 | 2 2 3 5 . 3 Treads . | . . . . . . Leg . | . . . . . . Wheel 5 | 2 . 2 1 . . Hover 4 | . . . 4 . . Flight 6 | . 2 1 . . 3 Utility 17 | 1 1 3 8 2 2 Device 3 | . . 1 1 1 . Storage 3 | 1 . . 1 . 1 Processor 4 | . 1 . 3 . . Hackware 1 | . . . 1 . . Protection 6 | . . 2 2 1 1 Artifact . | . . . . . . Weapon 14 | 2 1 7 2 . 2 Energy Gun 3 | . . 2 1 . . Energy Cannon . | . . . . . . Ballistic Gun 3 | 2 1 . . . . Ballistic Cannon 5 | . . 4 1 . . Launcher 2 | . . . . . 2 Special Weapon 1 | . . 1 . . . Impact Weapon . | . . . . . . Slashing Weapon . | . . . . . . Piercing Weapon . | . . . . . . Special Melee Weapon . | . . . . . . Unidentified Prototypes 2 | . . 1 1 . . Parts Lost 14 | . . 4 . . 10 Power 1 | . . . . . 1 Propulsion 7 | . . 2 . . 5 Utility 4 | . . 1 . . 3 Weapon 2 | . . 1 . . 1 Highest Loss Streak 3 | . . 2 . . 3 To Critical Strikes . | . . . . . . Average Slot Usage (%) 81 | . 90 69 87 100 79 Engine 5 | . 14 11 3 . . Core 3 | . . . 5 7 5 Wheel 8 | . 22 12 9 . . Hover 9 | . . . 15 30 10 Flight 3 | . 5 6 . . 5 Device 3 | . . 1 7 7 . Storage 3 | . 11 . 3 7 7 Processor 14 | . 8 11 17 15 13 Hackware 2 | . . . 1 7 6 Protection 7 | . . 6 5 7 14 Ballistic Gun 1 | . 27 . . . . Ballistic Cannon 13 | . . 17 18 15 1 Launcher 2 | . . . . . 12 Naked Turns . | . . . . . . Heaviest Build 35 | 14 14 22 29 33 35 Greatest Support 32 | 26 26 32 32 32 32 Greatest Overweight (x) 3 | . . 1 1 1 3 Average Overweight (x) . | . . . . 1 1 Largest Inventory Capacity 10 | 8 8 5 10 10 10 Average Capacity 7 | 7 7 5 6 10 10 Most Carried 10 | 3 5 5 10 9 9 Average Carried 5 | . 1 4 6 8 6 Final Capacity 10 | 8 5 5 10 10 10 Final Carried 10 | 1 4 5 10 8 6 Class Distribution -------------------- 100% | Mutant Dominant Class ---------------- Mutant | -10/Materials Mutant | -9/Materials Mutant | -8/Materials Mutant | -7/Factory Mutant | -7/Garrison Resources | -11 -10 -9 -8 -7 -7 ----------- Run | Scr Mat Mat Mat Fac Gar Matter Collected 1252 | 202 59 265 571 . 155 Remotely . | . . . . . . Salvage Created 1115 | . 60 433 490 . 132 Parts 91 | . 7 40 35 . 9 Haulers Intercepted . | . . . . . . Recyclers Shooed . | . . . . . . Parts Field Recycled . | . . . . . . Retrieved Matter . | . . . . . . Parts Self-Destructed . | . . . . . . Prevented . | . . . . . . Kills | -11 -10 -9 -8 -7 -7 ------- Run | Scr Mat Mat Mat Fac Gar Combat Hostiles Destroyed 41 | . 2 11 19 . 9 Guns 4 | . 2 2 . . . Cannons 29 | . . 6 19 . 4 AOE 8 | . . 3 . . 5 Classes Destroyed 8 | . 2 5 1 . . Worker 3 | . 1 1 1 . . Builder 1 | . . 1 . . . Recycler 2 | . . 1 1 . . Watcher 6 | . . 4 2 . . Swarmer 20 | . 2 3 7 . 8 Grunt 10 | . . 5 5 . . Sentry 9 | . . 3 6 . . Hunter 2 | . . . 1 . 1 Best Kill Streak 7 | . 2 7 5 . 4 Combat Bots Only 5 | . 1 4 5 . 4 Max Kills in Single Turn 4 | . 2 3 1 . 4 Gunslinging . | . . . . . . Exploded 4 | . . 2 . . 4 Melee . | . . . . . . Uniques/NPCs Destroyed . | . . . . . . Combat | -11 -10 -9 -8 -7 -7 -------- Run | Scr Mat Mat Mat Fac Gar Damage Taken 1832 | . 73 255 463 . 1041 Core 289 | . 25 59 64 . 141 Absorbed by Shields 20 | . . . . . 20 Core Remaining (%) 90 | 100 90 85 88 . . Volleys Fired 93 | . 7 28 42 . 16 Largest 2 | . 2 2 2 . 2 Hottest 88 | . 40 88 88 . 88 Shots Fired 168 | . 14 48 84 . 22 Gun 31 | . 14 17 . . . Cannon 115 | . . 22 84 . 9 Launcher 13 | . . . . . 13 Special 9 | . . 9 . . . Kinetic 129 | . 14 22 84 . 9 Thermal 9 | . . 9 . . . Explosive 13 | . . . . . 13 Electromagnetic 17 | . . 17 . . . Robot Hit Streak 9 | . 2 7 9 . 7 Robot Miss Streak 11 | . 4 6 11 . 7 Penetration Max . | . . . . . . Secondary Targets . | . . . . . . Shots Hit Robots 131 | . 5 33 77 . 16 Core Hits 153 | . 3 36 89 . 25 Critical Kills . | . . . . . . Critical Parts Destroyed . | . . . . . . Critical Strikes . | . . . . . . Melee Attacks . | . . . . . . Impact . | . . . . . . Slashing . | . . . . . . Piercing . | . . . . . . Sneak Attacks . | . . . . . . Combat Hostiles . | . . . . . . Follow-up Attacks . | . . . . . . Damage Inflicted 3237 | . 74 1049 1322 . 792 Guns 320 | . 74 246 . . . Cannons 1793 | . . 305 1275 . 213 Explosions 1080 | . . 454 47 . 579 Melee . | . . . . . . Ramming . | . . . . . . Kinetic 1867 | . 74 305 1275 . 213 Thermal 498 | . . 498 . . . Explosive 626 | . . . 47 . 579 Electromagnetic 246 | . . 246 . . . Impact . | . . . . . . Slashing . | . . . . . . Piercing . | . . . . . . Highest Corruption 11 | . . . . . 11 Average Corruption 10 | . . . . . 10 Corruption Purged . | . . . . . . Corruption Blocked . | . . . . . . Effects 5 | . . . . . 5 Message Errors 3 | . . . . . 3 Heat Flow Errors 1 | . . . . . 1 Alerts 1 | . . . . . 1 Overload Shots . | . . . . . . Overflow Damage 104 | . . 104 . . . Projectiles . | . . . . . . Explosions 104 | . . 104 . . . Melee . | . . . . . . Knockbacks 48 | . . 8 36 . 4 Impact . | . . . . . . Kinetic 47 | . . 8 35 . 4 Secondary 1 | . . . 1 . . Self-Inflicted Damage 210 | . . 93 31 . 86 Shots 5 | . . 2 1 . 2 Rammed . | . . . . . . Targets Rammed . | . . . . . . Kicked . | . . . . . . Crushed . | . . . . . . Highest Temperature 112 | . . 90 112 . 58 Average Temperature 29 | . . 24 33 . 16 Received Heat Transfer 183 | . . 57 108 . 18 Siege Activations . | . . . . . . Robots Corrupted . | . . . . . . Combat Hostiles . | . . . . . . Parts Fried 2 | . . 2 . . . Impact Corruptions . | . . . . . . Robots Melted . | . . . . . . Combat Hostiles . | . . . . . . Parts Melted . | . . . . . . Heat Transferred 498 | . . 498 . . . Parts Sabotaged . | . . . . . . Parts Stolen . | . . . . . . Parts Stripped . | . . . . . . Power Chain Reactions 1 | . . 1 . . . Missiles Intercepted . | . . . . . . Alert | -11 -10 -9 -8 -7 -7 ------- Run | Scr Mat Mat Mat Fac Gar Peak Influence 631 | . 72 427 631 287 466 Initial 287 | . . 29 130 287 200 Average 269 | . 38 240 305 287 328 Maximum Alert Level 2 | . . 2 2 1 2 Low Security (%) 19 | 100 100 26 10 . . Level 1 71 | . . 72 71 100 93 Level 2 8 | . . . 17 . 6 Level 3 . | . . . . . . Level 4 . | . . . . . . Level 5 . | . . . . . . High Security . | . . . . . . Max Security . | . . . . . . Squads Dispatched 7 | . . 2 5 . . Investigation 4 | . . 2 2 . . Extermination . | . . . . . . Reinforcement 3 | . . . 3 . . Assault . | . . . . . . Garrison . | . . . . . . Intercept . | . . . . . . Searches Triggered . | . . . . . . Construction Impeded . | . . . . . . Haulers Reinforced . | . . . . . . Active Scanning Responses . | . . . . . . Cargo Convoy Interrupts . | . . . . . . Stealth | -11 -10 -9 -8 -7 -7 --------- Run | Scr Mat Mat Mat Fac Gar Distress Signals 1 | . . 1 . . . Communications Jammed . | . . . . . . Distress Signals . | . . . . . . Times Spotted 66 | . 5 17 31 . 13 Peak Tracking Total 6 | . 3 4 5 . 6 Tactical Retreats 2 | . . . 2 . . Traps | -11 -10 -9 -8 -7 -7 ------- Run | Scr Mat Mat Mat Fac Gar Traps Triggered 4 | . . . . . 4 Indirectly . | . . . . . . Trap Hack Attempts . | . . . . . . Triggered . | . . . . . . Disarmed . | . . . . . . Reprogrammed 1 | . . 1 . . . Reused . | . . . . . . Traps Extracted . | . . . . . . Installed . | . . . . . . Triggered 1 | . . 1 . . . Machines | -11 -10 -9 -8 -7 -7 ---------- Run | Scr Mat Mat Mat Fac Gar Machines Disabled 4 | . . 2 2 . . Max in Single Turn 2 | . . 2 1 . . Machines Sabotaged . | . . . . . . Garrisons Compromised . | . . . . . . Overloaded Fab Kills . | . . . . . . Hacking | -11 -10 -9 -8 -7 -7 --------- Run | Scr Mat Mat Mat Fac Gar Machines Accessed 20 | . 2 9 7 2 . Terminals 13 | . 1 8 4 . . Fabricators . | . . . . . . Repair Stations 1 | . . . 1 . . Recycling Units 3 | . 1 . 1 1 . Scanalyzers 2 | . . 1 1 . . Garrison Access 1 | . . . . 1 . Total Hacks 60 | . 6 30 20 4 . Successful 35 | . 2 19 10 4 . Failed 25 | . 4 11 10 . . Catastrophic 1 | . . 1 . . . Database Lockouts . | . . . . . . Manual . | . . . . . . Terminals 41 | . 3 26 12 . . Fabricators . | . . . . . . Repair Stations 3 | . . . 3 . . Recycling Units 7 | . 3 . 2 2 . Scanalyzers 7 | . . 4 3 . . Garrison Access 2 | . . . . 2 . Terminal Hacks 21 | . 1 15 5 . . Record 8 | . 1 7 . . . Robot Analysis 3 | . . 2 1 . . Prototype ID Bank 2 | . . 2 . . . Branch Access Points 1 | . . . 1 . . Alert Level 1 | . . 1 . . . Unreport Threat 1 | . . 1 . . . Reprogram Traps 1 | . . 1 . . . Reinforcement Status 1 | . . . 1 . . Recall Reinforcements 1 | . . . 1 . . Registered Components 1 | . . 1 . . . Zone Layout 1 | . . . 1 . . Fabricator Hacks . | . . . . . . Repair Station Hacks 2 | . . . 2 . . Scan Component 2 | . . . 2 . . Recycling Unit Hacks 5 | . 1 . 2 2 . Report Inventory 2 | . . . 1 1 . Retrieve Matter 2 | . . . 1 1 . Retrieve Components 1 | . 1 . . . . Scanalyzer 5 | . . 4 1 . . Insert Component 3 | . . 2 1 . . Analyze 2 | . . 2 . . . Garrison Access Hacks 2 | . . . . 2 . Unlock Access 1 | . . . . 1 . Coupler Status 1 | . . . . 1 . Unauthorized Hacks . | . . . . . . Terminals . | . . . . . . Fabricators . | . . . . . . Repair Stations . | . . . . . . Recycling Units . | . . . . . . Scanalyzers . | . . . . . . Garrison Access . | . . . . . . Data Cores Recovered . | . . . . . . Used . | . . . . . . Hacking Detections 18 | . 2 8 6 2 . Full Trace Events 3 | . . 1 2 . . Feedback Events . | . . . . . . Feedback Blocked . | . . . . . . Robot Schematics Acquired . | . . . . . . Robots Built . | . . . . . . Authchips . | . . . . . . Time . | . . . . . . Total Robot Build Rating . | . . . . . . Part Schematics Acquired 2 | . . 2 . . . Parts Built . | . . . . . . Authchips . | . . . . . . Time . | . . . . . . Total Part Build Rating . | . . . . . . Parts Repaired . | . . . . . . Time . | . . . . . . Parts Recycled . | . . . . . . Recycled Matter . | . . . . . . Retrieved Matter . | . . . . . . Retrieved Components 4 | . 4 . . . . Parts Scanalyzed 3 | . . 2 1 . . Part Schematics Acquired 2 | . . 2 . . . Parts Damaged . | . . . . . . Bothacking | -11 -10 -9 -8 -7 -7 ------------ Run | Scr Mat Mat Mat Fac Gar Used RIF Installer . | . . . . . . Robots Hacked . | . . . . . . Non-combat . | . . . . . . Combat . | . . . . . . Robot Hacks Applied . | . . . . . . Relay Couplers Released . | . . . . . . Fabnet Peak Effective % . | . . . . . . Robots Rewired . | . . . . . . Allies Hacked . | . . . . . . Hacks Repelled . | . . . . . . Allies | -11 -10 -9 -8 -7 -7 -------- Run | Scr Mat Mat Mat Fac Gar Total Allies . | . . . . . . Largest Group . | . . . . . . Highest-Rated Group . | . . . . . . Highest-Rated Ally . | . . . . . . Total Orders . | . . . . . . Ally Attacks . | . . . . . . Total Damage . | . . . . . . Kills . | . . . . . . Allies Corrupted . | . . . . . . Allies Melted . | . . . . . . Intel | -11 -10 -9 -8 -7 -7 ------- Run | Scr Mat Mat Mat Fac Gar Robot Analysis Total 3 | . . 2 1 . . Derelict Logs Recovered . | . . . . . . Drone Launches . | . . . . . . Drone Recoveries . | . . . . . . Exploration | -11 -10 -9 -8 -7 -7 ------------- Run | Scr Mat Mat Mat Fac Gar Turns Passed 2520 | 47 148 707 1050 81 487 Spaces Moved 2280 | 40 166 606 1146 74 248 Core 5 | 5 . . . . . Treads . | . . . . . . Legs . | . . . . . . Wheels 1065 | 35 101 465 464 . . Hover 949 | . . . 682 74 193 Flight 261 | . 65 141 . . 55 Fastest Speed 34 | 50 37 34 48 108 108 Average Speed 86 | 85 69 92 70 108 152 Slowest Speed 275 | 90 90 117 126 108 275 Overloaded Moves . | . . . . . . Propulsion Burnouts . | . . . . . . Robots Hopped 2 | . . 2 . . . Cave-ins Triggered 1 | . . . . . 1 Exploration Rate (%) 28 | 3 31 41 58 2 36 Regions Visited 5 Branch Regions . Pre-discovered Areas . | . . . . . . Known Exits Taken 2 | . . . 1 1 . Unknown Exits Taken 3 | 1 1 1 . . . Scrap Searched . | . . . . . . Spaces Dug . | . . . . . . Terrain Destroyed 137 | . . 19 34 . 84 Melee . | . . . . . . Projectile . | . . . . . . AOE 137 | . . 19 34 . 84 Terrain Rammed . | . . . . . . Walls Destroyed . | . . . . . . Machines Disabled . | . . . . . . Actions | -11 -10 -9 -8 -7 -7 --------- Run | Scr Mat Mat Mat Fac Gar Total 2644 | 52 184 696 1303 75 334 Wait 61 | . . 24 37 . . Move 2271 | 39 165 601 1145 73 248 Hop 2 | . . 2 . . . Pick Up 65 | 7 5 15 35 . 3 Fast Attach . | . . . . . . Attach 24 | 6 2 5 5 2 4 Detach 2 | . 1 1 . . . Swap 31 | . 2 10 16 . 3 Drop 36 | . 2 10 23 . 1 Fire 93 | . 7 28 42 . 16 Melee . | . . . . . . Ram . | . . . . . . Kick . | . . . . . . Crush . | . . . . . . Escape Stasis 58 | . . . . . 58 Rewire 1 | . . . . . 1 Trap . | . . . . . . Miscellaneous . | . . . . . . Route ------- -11/Scrapyard -10/Materials -9/Materials (discovered 2 exits: *Mat / [*Min]) -8/Materials -7/Factory -7/Garrison History --------- Turn | Location | Event 2 | -11/Scrapyard | Met Revision 17 19 | -11/Scrapyard | Discovered new exit (range 16) 48 | -11/Scrapyard | Entered Materials 114 | -10/Materials | Discovered new exit (range 15) 196 | -10/Materials | Entered another Materials area 196 | -9/Materials | Evolved 2 slots: Propulsion x2 302 | -9/Materials | Build established: Mutant 378 | -9/Materials | Discovered new exit (range 13) 762 | -9/Materials | Discovered new exit (range 16) 903 | -9/Materials | Entered another Materials area 903 | -8/Materials | Evolved 2 slots: Utility x2 1931 | -8/Materials | Discovered new exit (range 13) 1952 | -8/Materials | Identified exit to Factory 1953 | -8/Materials | Entered Factory 1953 | -7/Factory | Evolved 2 slots: Utility x2 2024 | -7/Factory | Identified exit to Garrison 2034 | -7/Factory | Entered Garrison 2072 | -7/Garrison | Triggered checkpoint 2113 | -7/Garrison | Lost 3 parts (2n1w) 2258 | -7/Garrison | Triggered checkpoint 2410 | -7/Garrison | Crushed by falling debris 2410 | -7/Garrison | System corruption reached 10% 2441 | -7/Garrison | Lost 3 parts (1p1n1u) 2521 | -7/Garrison | Self-destructed Last Messages --------------- Field strength at 80. Hacking Suite destroyed. Field strength at 71. Field strength at 66. Field strength at 61. Field strength at 52. Field strength at 47. Field strength at 42. Field strength at 29. Field strength at 24. Field strength at 19. The unstable cave ceiling collapses. Field strength at 10. ALERT: Garrison interior compromised. Field strength at 5. Stasis field depleted. X&D#T/TZOG6DND6STNNX=OKHKMINL4|EC= Imp. Light Armor Plating destroyed. VTOL Module destroyed. System corrupted: Heat flow error (+132). Map ----- +----------------------------------------------------+ | ??#" "???????????????????????????????????????????? | | ??#" "???????????????????????????????????????????? | | ???" "???????????????????????????????????????????? | | ??## ##??????????????????????????????????????????? | | ??# #??????????????????????????????????????????? | | ??# #############??????????????????????????????? | | ??# #??????????????????????????????? | | ??# #??????????????????????????????? | | ??############## #??????????????????????????????? | | ?????????????### ####???????????????????????????? | | ????????????## # ##??????????????????????????? | | ????????????# # # #??????????????????????????? | | ######??##### # ## ##??????????????????????????? | | # # ##??# # ## =#####??????????????????????????? | | # ##### # ## ########????????????????????? | | #????????????????????? | | #* *#### ^^ #????????????????????? | | ### #?# ### ###### #????????????????????? | | #?## ##?## ## # ######## #????????????????????? | | #?? [#???###?## ## " #????????????????????? | | #? #???###### # ##### #????????????????????? | | #### #???# #????????????????????? | | #??# #??######## # #???# #????????????????????? | | #??# #????????# # #???# #????????????????????? | | #??###????????## ## #??## ##""""######?????????? | | #??????????????# #######@ ???????? | | ###"""########## g ???????? | | g ???????? | | ######################## ## ## ##????????? | | ??????????????????????### ## #??? #?????????? | | ??????????????????????# ^ g "?????????? | | ??????????????????????# ^ "?????????? | | ??????????????????????# "?????????? | | ??????????????????????# [ ^ "?????????? | | ??????????????????????### ## ## #?????????? | | ????????????????????????# ? #?? #?????????? | | ???????????????????????? ?????????????? | | ???????????????????????? ? ???????????? | | ??????????????????????? ???????????? | | ???????????????????????#######""""####???????????? | | ?????????????????????????????????????????????????? | | ?????????????????????????????????????????????????? | | ?????????????????????????????????????????????????? | | ?????????????????????????????????????????????????? | | ?????????????????????????????????????????????????? | | ?????????????????????????????????????????????????? | | ?????????????????????????????????????????????????? | | ?????????????????????????????????????????????????? | | ?????????????????????????????????????????????????? | | ?????????????????????????????????????????????????? | +----------------------------------------------------+ Best States ------------- Heat Dissipation 34 Energy Generation 15 Energy Capacity 300 Matter Stores 300 Matter Capacity 300 Sight Range 16 Robot Scan Range 15 Terrain Scan Density 10 Armor Coverage 300 Evasion (%) 63 Targeting Accuracy 6 Offensive Hacking 10 Item Schematics ----------------- Mni. Grenade Launcher | -9/Materials | Scanalyzed Flak Cannon | -9/Materials | Scanalyzed Robot Schematics ------------------ None Fabricated ------------ Nothing Alien Tech Used ----------------- None Achievements -------------- Armchair Analyst GoHome() More Dakka Please Unlikely Earthworm Challenges ------------ None Game ------ Seed UltimateHeavyFilter Manual? 0 Play Time 00:44:17 Cumulative 6.3 hours Start 2022.07.03 @ 23:57:58 End 2022.07.04 @ 00:41:36 Sessions 1 Manual Loads 0 Difficulty Rogue Special Mode None Game No. 6 Rogue 6 Adventurer 0 Explorer 0 Win Type - Total 0 Types 0/0/0/0/0/0/0/0/0 Lore% 12 Gallery% 12 Achievement% 12 Wizard Run 0 Options --------- ASCII 0 Keyboard 0 Movement Mouse Keybinds 0 Fullscreen 1 Font 24/Terminus Map View 76x50 Tactical HUD 0 Map Filters NONE Filters NONE Steam 1 RUN: d5afae28-0bb1-470c-aa54-d25dc6317cd6